bitfinex-derivatives/quotes_BTCF0:USTF0_20250313
["timestamp","ask_amount","ask_price","bid_price","bid_amount"]
[1741879630946,0.7695,81650.0,81591.0,0.50654086]
[1741879630947,0.1225545,81611.0,81610.0,0.43866238]
[1741879631146,0.2629145,81611.0,81610.0,0.43866238]
[1741879631342,0.1225514,81614.0,81610.0,0.43866238]
[1741879631553,0.1225545,81611.0,81610.0,0.43866238]
[1741879632040,0.1838278,81615.0,81614.0,0.12255]
[1741879632248,0.122553,81612.0,81611.0,0.004]
[1741879632544,0.1225545,81611.0,81610.0,0.43866238]
[1741879632745,0.001,81614.0,81610.0,0.43866238]
[1741879632954,0.001,81614.0,81613.0,0.1225515]
[1741879633254,0.12355,81614.0,81613.0,0.1225515]
[1741879634354,0.0001838,81619.0,81610.0,0.43866238]
[1741879634550,0.0001838,81619.0,81618.0,0.122544]
[1741879635253,1e-07,81619.0,81618.0,0.122544]
[1741879635755,0.18572542,81634.0,81623.0,0.0612675]
[1741879635950,0.69904,81657.0,81624.0,0.23754]
[1741879636141,0.0929,81668.0,81655.0,0.1224885]
[1741879636142,0.0462,81656.0,81655.0,0.1224885]
[1741879636345,0.0929,81668.0,81642.0,0.14044]
[1741879636556,0.1224859,81657.0,81643.0,0.1845]
[1741879636746,0.0001838,81658.0,81643.0,0.1845]
[1741879636947,0.1224863,81657.0,81656.0,0.1224855]
[1741879637154,0.122487,81656.0,81655.0,0.0913]
[1741879637448,0.1225065,81643.0,81642.0,0.1226918]
[1741879637652,0.1225065,81643.0,81642.0,0.0001838]
[1741879638654,0.201651,81646.0,81645.0,0.1225035]
[1741879638655,0.2629035,81646.0,81645.0,0.1225035]
[1741879638950,0.1225065,81643.0,81642.0,0.0001838]
[1741879639257,0.003,81643.0,81642.0,0.1839457]
[1741879639756,0.1255065,81643.0,81642.0,0.1839457]
[1741879640056,0.1255065,81643.0,81642.0,0.0001838]
[1741879640260,0.003,81643.0,81642.0,0.1226918]
[1741879640743,0.14044,81655.0,81654.0,0.12249]
[1741879640949,0.201637,81665.0,81657.0,0.1224855]
[1741879641158,0.1226678,81658.0,81657.0,0.1224855]
[1741879641457,0.0001838,81658.0,81657.0,0.3103855]
[1741879641850,0.0001838,81658.0,81657.0,0.32009845]
[1741879642245,0.0051838,81658.0,81657.0,0.3103855]
[1741879642449,0.1276678,81658.0,81657.0,0.1879]
[1741879642648,0.1326678,81658.0,81657.0,0.1879]
[1741879643053,0.1326678,81658.0,81657.0,0.0903]
[1741879643459,0.1326678,81658.0,81657.0,0.2127855]
[1741879643654,0.1326678,81658.0,81657.0,0.0903]
[1741879643960,0.0101838,81658.0,81657.0,0.2127855]
[1741879644255,0.0051838,81658.0,81657.0,0.31974362]
[1741879644652,0.0001838,81658.0,81657.0,0.32374362]
[1741879644957,0.0001838,81658.0,81657.0,0.41304362]
[1741879645157,0.0021838,81658.0,81657.0,0.40904362]
[1741879645354,0.1246678,81658.0,81657.0,0.2762]
[1741879645658,0.1246678,81658.0,81657.0,0.1849]
[1741879646248,0.1246678,81658.0,81657.0,0.1224855]
[1741879646547,0.0021838,81658.0,81654.0,0.1224893]
[1741879646854,0.0612427,81657.0,81656.0,0.122487]
[1741879647050,0.0021838,81658.0,81657.0,0.1224855]
[1741879647250,0.1246678,81658.0,81657.0,0.1224855]
[1741879647646,0.0001838,81658.0,81648.0,0.1404]
[1741879647851,0.1184884,81657.0,81656.0,0.1224855]
[1741879648053,0.0612449,81655.0,81651.0,0.0939]
[1741879648253,0.0612491,81649.0,81630.0,1.42404]
[1741879648458,0.1225065,81643.0,81637.0,0.0102746]
[1741879649157,0.1225065,81643.0,81642.0,0.1226918]
[1741879649553,0.1225065,81643.0,81642.0,0.1875838]
[1741879650357,0.1225065,81643.0,81642.0,0.0001838]
[1741879650563,0.0983,81644.0,81632.0,0.061261]
[1741879650564,0.1225215,81634.0,81633.0,0.1225202]
[1741879650864,0.1225215,81634.0,81633.0,0.0962]
[1741879651257,0.1225215,81634.0,81633.0,0.2187215]
[1741879652056,0.0001838,81642.0,81634.0,0.06126]
[1741879652250,0.1225185,81636.0,81635.0,0.2749713]
[1741879652660,0.1225185,81636.0,81635.0,0.0912]
[1741879652961,0.1225185,81636.0,81635.0,0.2137185]
[1741879653257,0.1225185,81636.0,81635.0,0.0912]
[1741879653464,0.1225486,81617.0,81616.0,0.1225395]
[1741879653865,0.122547,81616.0,81615.0,0.280619]
[1741879654053,0.122547,81616.0,81615.0,0.1580735]
[1741879654254,0.0001838,81625.0,81615.0,0.10729455]
[1741879654454,0.1225386,81623.0,81622.0,0.0612683]
[1741879654657,0.0001838,81625.0,81624.0,0.122535]
[1741879654859,0.00064,81647.0,81624.0,0.122535]
[1741879654860,0.001,81636.0,81635.0,0.1225185]
[1741879655165,0.123517,81636.0,81635.0,0.1225185]
[1741879655364,0.123517,81636.0,81632.0,0.0612611]
[1741879655365,0.122517,81636.0,81632.0,0.1404]
[1741879655551,0.1225185,81635.0,81634.0,0.2158197]
[1741879656062,0.1225185,81635.0,81634.0,0.0933]
[1741879656250,0.0612577,81637.0,81626.0,0.0001838]
[1741879656454,0.1225305,81627.0,81626.0,0.0001838]
[1741879657165,0.0612633,81630.0,81624.0,0.0953]
[1741879657360,0.1225335,81625.0,81624.0,0.0953]
[1741879657566,0.1225335,81625.0,81624.0,0.0933]
[1741879658258,0.1867994,81627.0,81624.0,0.0933]
[1741879658460,0.0642659,81627.0,81626.0,0.122532]
[1741879658760,0.0612659,81627.0,81626.0,0.122532]
[1741879658952,0.003,81625.0,81624.0,0.215835]
[1741879659158,0.1255335,81625.0,81624.0,0.215835]
[1741879659661,0.003,81625.0,81611.0,0.1515767]
[1741879659863,0.1225515,81613.0,81612.0,0.122553]
[1741879660258,0.1225515,81613.0,81612.0,0.13278516]
[1741879661263,0.1225515,81613.0,81611.0,0.2128537]
[1741879661264,0.122553,81612.0,81611.0,0.0903]
[1741879661764,0.123553,81613.0,81612.0,0.122553]
[1741879661959,0.122553,81613.0,81612.0,0.122553]
[1741879662561,0.1838227,81617.0,81613.0,0.061275]
[1741879662765,0.1225485,81615.0,81614.0,0.091]
[1741879664471,0.1225485,81615.0,81614.0,0.21355]
[1741879664667,0.002,81615.0,81614.0,0.21355]
[1741879665072,0.1265485,81615.0,81614.0,0.21355]
[1741879665665,0.1265485,81615.0,81614.0,0.30565]
[1741879666065,0.004,81615.0,81614.0,0.30565]
[1741879666465,0.18016634,81621.0,81614.0,0.1831]
[1741879666668,0.18016634,81621.0,81620.0,0.122541]
[1741879667066,0.30270584,81621.0,81620.0,0.2024]
[1741879667470,0.30270584,81621.0,81620.0,0.324941]
[1741879668073,0.18016634,81621.0,81620.0,0.326941]
[1741879668269,0.30270584,81621.0,81620.0,0.326941]
[1741879668681,0.30470584,81621.0,81620.0,0.325941]
[1741879669069,0.30470584,81621.0,81620.0,0.2034]
[1741879669272,0.2238395,81621.0,81620.0,0.325941]
[1741879670080,0.1245395,81621.0,81620.0,0.324941]
[1741879670282,0.1255395,81621.0,81620.0,0.324941]
[1741879670577,0.003,81621.0,81620.0,0.324941]
[1741879670886,0.002,81621.0,81620.0,0.324941]
[1741879671082,0.1265395,81621.0,81620.0,0.324941]
[1741879671385,0.1245395,81621.0,81620.0,0.324941]
[1741879671880,0.002,81621.0,81620.0,0.465341]
[1741879672196,0.0001838,81627.0,81620.0,0.465341]
[1741879672197,0.0001838,81627.0,81626.0,0.122532]
[1741879672485,0.1227143,81627.0,81626.0,0.122532]
[1741879672673,0.1227143,81627.0,81626.0,0.216232]
[1741879672873,0.1227143,81627.0,81626.0,0.410232]
[1741879673688,0.1237143,81627.0,81626.0,0.410232]
[1741879674076,0.0011838,81627.0,81626.0,0.410232]
[1741879674273,0.1237143,81627.0,81626.0,0.4205271]
[1741879674479,0.0001838,81627.0,81626.0,0.4205271]
[1741879674677,0.0001838,81627.0,81626.0,0.4225271]
[1741879674981,0.1227143,81627.0,81626.0,0.4225271]
[1741879676389,0.1227143,81627.0,81626.0,0.4215271]
[1741879676584,0.1227143,81627.0,81626.0,0.2887]
[1741879676891,0.122544,81619.0,81618.0,0.183816]
[1741879677189,0.122553,81612.0,81611.0,0.3154514]
[1741879677387,0.122553,81612.0,81611.0,0.1929]
[1741879677986,0.322953,81612.0,81611.0,0.3154545]
[1741879678190,0.322953,81612.0,81611.0,0.1929]
[1741879678387,0.322953,81612.0,81611.0,0.3154545]
[1741879679390,0.0612737,81616.0,81613.0,0.1225515]
[1741879679579,0.1838176,81618.0,81617.0,0.122544]
[1741879680177,0.1838176,81618.0,81617.0,0.318344]
[1741879680892,0.34006465,81618.0,81617.0,0.318344]
[1741879681195,0.21852065,81618.0,81617.0,0.318344]
[1741879681389,0.34206465,81618.0,81617.0,0.318344]
[1741879681597,0.21952065,81618.0,81617.0,0.318344]
[1741879681782,0.14226575,81618.0,81617.0,0.318344]
[1741879681987,0.18140315,81629.0,81626.0,0.122532]
[1741879682389,0.18140315,81629.0,81626.0,0.416632]
[1741879682696,0.30393085,81629.0,81626.0,0.416632]
[1741879682895,0.18140315,81629.0,81626.0,0.416632]
[1741879683195,0.1227143,81627.0,81626.0,0.416632]
[1741879683584,0.1227143,81627.0,81626.0,0.417632]
[1741879683788,0.0001838,81627.0,81626.0,0.417632]
[1741879683996,0.57161134,81660.0,81626.0,0.45533086]
[1741879684291,0.14565486,81627.0,81626.0,0.51012826]
[1741879684483,0.18206858,81633.0,81632.0,0.122523]
[1741879685287,0.30459008,81633.0,81632.0,0.122523]
[1741879685492,0.30459008,81633.0,81632.0,0.318023]
[1741879685794,0.18206858,81633.0,81632.0,0.318023]
[1741879688483,0.0001838,81641.0,81640.0,0.122511]
[1741879688896,0.1225125,81639.0,81638.0,0.1927]
[1741879689191,0.1225125,81639.0,81638.0,0.315214]
[1741879689587,0.2177125,81639.0,81638.0,0.315214]
[1741879689782,0.0001838,81641.0,81640.0,0.122511]
[1741879690186,0.1226933,81641.0,81640.0,0.122511]
[1741879690395,0.1226933,81641.0,81640.0,0.318611]
[1741879690783,0.1246933,81641.0,81640.0,0.318611]
[1741879691583,0.0021838,81641.0,81627.0,0.14032]
[1741879691784,0.1225245,81632.0,81631.0,0.1837852]
[1741879691992,0.1225245,81632.0,81631.0,0.3848852]
[1741879692597,0.2149245,81632.0,81631.0,0.2623609]
[1741879692901,0.3144245,81632.0,81631.0,0.2623609]
[1741879693290,0.0924,81632.0,81631.0,0.2623609]
[1741879693485,0.0612607,81634.0,81633.0,0.1225215]
[1741879693999,0.0021838,81641.0,81631.0,0.2011]
[1741879694200,0.2472091,81641.0,81640.0,0.122511]
[1741879694400,0.1246951,81641.0,81640.0,0.122511]
[1741879694599,0.1226951,81641.0,81640.0,0.122511]
[1741879694791,0.1226951,81641.0,81640.0,0.319811]
[1741879695493,0.1226951,81641.0,81640.0,0.1973]
[1741879695700,0.1226951,81641.0,81640.0,0.319811]
[1741879695901,0.1226951,81641.0,81640.0,0.221511]
[1741879696491,0.1236951,81641.0,81640.0,0.221511]
[1741879696688,0.0624392,81641.0,81640.0,0.221511]
[1741879696891,0.0644392,81641.0,81640.0,0.221511]
[1741879697698,0.2498392,81641.0,81640.0,0.1963]
[1741879698101,0.2478392,81641.0,81640.0,0.099]
[1741879698298,0.2498392,81641.0,81640.0,0.099]
[1741879698502,0.2498392,81641.0,81640.0,0.221511]
[1741879698800,0.1266933,81641.0,81640.0,0.221511]
[1741879699193,0.1266933,81641.0,81640.0,0.313011]
[1741879700290,0.2182933,81641.0,81640.0,0.313011]
[1741879700601,0.0041838,81641.0,81640.0,0.313011]
[1741879700805,0.0011838,81641.0,81640.0,0.313011]
[1741879701003,0.0031838,81641.0,81640.0,0.545591]
[1741879701507,0.4375834,81658.0,81657.0,0.1224855]
[1741879701695,0.3150891,81658.0,81657.0,0.1224855]
[1741879702492,0.1926,81658.0,81657.0,0.1224855]
[1741879702705,0.00183797,81661.0,81658.0,0.122484]
[1741879703902,0.1224797,81661.0,81658.0,0.122484]
[1741879704103,0.1224825,81659.0,81658.0,0.1857252]
[1741879704494,0.1224825,81659.0,81658.0,0.0652412]
[1741879704699,0.1224825,81659.0,81658.0,0.004]
[1741879705098,0.183718,81665.0,81664.0,0.1224735]
[1741879705293,0.277118,81665.0,81664.0,0.1224735]
[1741879705504,0.1837207,81662.0,81661.0,0.1224792]
[1741879705703,0.1224825,81659.0,81658.0,0.004]
[1741879706213,0.1224825,81659.0,81658.0,0.003]
[1741879706399,0.1224825,81659.0,81658.0,0.125484]
[1741879706599,0.2158825,81659.0,81658.0,0.123484]
[1741879706906,0.2158825,81659.0,81658.0,0.122484]
[1741879707097,0.21821551,81666.0,81658.0,0.122484]
[1741879707297,0.21821551,81666.0,81656.0,0.01092836]
[1741879707298,0.1224855,81658.0,81657.0,0.122484]
[1741879707809,0.3161855,81658.0,81657.0,0.122484]
[1741879708406,0.1937,81658.0,81650.0,0.0612477]
[1741879708604,0.1224945,81651.0,81650.0,0.0612477]
[1741879708799,0.1837385,81656.0,81655.0,0.1224885]
[1741879709807,0.0612442,81656.0,81655.0,0.1224885]
[1741879711302,0.0612442,81656.0,81653.0,0.061245]
[1741879711500,0.0612442,81656.0,81649.0,0.0001838]
[1741879711501,0.1884,81655.0,81649.0,0.0001838]
[1741879711813,0.122508,81642.0,81633.0,0.1225204]
[1741879712013,0.122508,81642.0,81637.0,0.1225148]
[1741879712210,0.1884,81646.0,81639.0,0.1225121]
[1741879712415,0.310902,81646.0,81645.0,0.1225035]
[1741879713021,0.00926805,81653.0,81652.0,0.1224915]
[1741879713310,0.3152915,81653.0,81652.0,0.1224915]
[1741879714014,0.3152915,81653.0,81652.0,0.13621004]
[1741879714515,0.3162915,81653.0,81652.0,0.13621004]
[1741879714716,0.3162915,81653.0,81652.0,0.14693286]
[1741879714921,0.3152915,81653.0,81652.0,0.14693286]
[1741879715120,0.3172915,81653.0,81652.0,0.14693286]
[1741879715414,0.002,81653.0,81652.0,0.14693286]
[1741879715806,0.002,81653.0,81652.0,0.24513286]
[1741879716718,0.12267418,81654.0,81653.0,0.1224915]
[1741879716915,0.12267418,81654.0,81653.0,0.13438937]
[1741879717115,0.12267418,81654.0,81653.0,0.23258937]
[1741879717308,0.12267418,81654.0,81653.0,0.34120791]
[1741879717507,0.00018368,81654.0,81653.0,0.34120791]
[1741879717905,8e-08,81654.0,81653.0,0.34120791]
[1741879718108,0.00904569,81679.0,81665.0,0.1224735]
[1741879718415,0.15537668,81669.0,81665.0,0.27457137]
[1741879718807,0.15537668,81669.0,81665.0,0.2626735]
[1741879719009,0.15537668,81669.0,81665.0,0.4506735]
[1741879719519,0.15537668,81669.0,81665.0,0.46439204]
[1741879720012,0.18145312,81669.0,81665.0,0.40315454]
[1741879720207,0.30392062,81669.0,81668.0,0.122469]
[1741879720417,0.18145312,81669.0,81668.0,0.122469]
[1741879720814,0.18145312,81669.0,81668.0,0.13430118]
[1741879721120,0.18145312,81669.0,81668.0,0.14801972]
[1741879721422,0.18645312,81669.0,81668.0,0.14801972]
[1741879721808,0.18645312,81669.0,81668.0,0.13618754]
[1741879722917,0.18645312,81669.0,81668.0,0.14803813]
[1741879723319,0.005,81669.0,81668.0,0.14803813]
[1741879723512,0.00018368,81674.0,81668.0,0.14803813]
[1741879723713,0.00018368,81674.0,81673.0,0.1224615]
[1741879724121,0.00018368,81674.0,81673.0,0.3201615]
[1741879724313,0.00018368,81674.0,81673.0,0.33388004]
[1741879724823,0.00018368,81674.0,81673.0,0.34573304]
[1741879725211,8e-08,81674.0,81673.0,0.38573304]
[1741879725415,0.1969,81696.0,81688.0,0.122439]
[1741879725721,0.1224296,81695.0,81688.0,0.262559]
[1741879725918,0.27924701,81694.0,81688.0,0.262559]
[1741879726118,0.30389062,81689.0,81688.0,0.262559]
[1741879726314,0.30389062,81689.0,81688.0,0.461459]
[1741879726516,0.30389062,81689.0,81688.0,0.35273854]
[1741879726814,0.30589062,81689.0,81688.0,0.47517754]
[1741879727327,0.18345312,81689.0,81688.0,0.48612072]
[1741879727920,0.1244375,81689.0,81688.0,0.48612072]
[1741879728110,0.002,81689.0,81688.0,0.48612072]
[1741879729812,1e-07,81689.0,81688.0,0.48612072]
[1741879730016,1e-07,81689.0,81688.0,0.52612072]
[1741879731828,0.1224376,81689.0,81688.0,0.52612072]
[1741879732628,0.3231376,81689.0,81688.0,0.36368172]
[1741879732830,0.3231376,81689.0,81688.0,0.34600072]
[1741879733126,0.3231376,81689.0,81688.0,0.11401854]
[1741879733321,0.3231376,81689.0,81688.0,0.23645754]
[1741879733740,0.3231376,81689.0,81688.0,0.222739]
[1741879733920,0.2217376,81689.0,81688.0,0.318639]
[1741879734120,0.1992001,81689.0,81688.0,0.318639]
[1741879734317,0.3216376,81689.0,81688.0,0.318639]
[1741879735132,0.3216376,81689.0,81681.0,0.0612242]
[1741879735133,0.0612229,81684.0,81680.0,0.18385858]
[1741879735333,0.1224495,81681.0,81680.0,0.12263468]
[1741879735734,0.3171495,81681.0,81680.0,0.01389088]
[1741879736333,0.12246,81674.0,81673.0,0.01081438]
[1741879736527,0.13307865,81674.0,81673.0,0.01081438]
[1741879736931,0.01061865,81674.0,81668.0,0.1224677]
[1741879737125,0.2888,81673.0,81661.0,0.1946]
[1741879737335,0.122475,81664.0,81663.0,0.00018368]
[1741879737624,0.13337326,81664.0,81663.0,0.00018368]
[1741879737829,0.122475,81664.0,81663.0,0.12266018]
[1741879738226,0.321375,81664.0,81663.0,0.12266018]
[1741879738828,0.1989,81664.0,81663.0,0.12266018]
[1741879739030,0.0943,81673.0,81663.0,0.19458368]
[1741879739233,0.321363,81672.0,81671.0,0.1224645]
[1741879739837,0.321363,81672.0,81671.0,0.2152645]
[1741879740227,0.10856636,81677.0,81671.0,0.2152645]
[1741879740433,0.23102186,81677.0,81676.0,0.122457]
[1741879740633,0.23102186,81677.0,81676.0,0.13298009]
[1741879740834,0.23102186,81677.0,81676.0,0.122457]
[1741879741038,0.1224585,81675.0,81674.0,0.0612292]
[1741879741250,0.1224615,81673.0,81672.0,0.2210614]
[1741879741441,0.1224615,81673.0,81672.0,0.221063]
[1741879742041,0.1919,81673.0,81643.0,0.22833329]
[1741879742228,0.122475,81664.0,81663.0,0.12266018]
[1741879742636,0.122475,81664.0,81663.0,0.00018368]
[1741879742837,0.122484,81659.0,81658.0,0.244968]
[1741879743334,0.122484,81659.0,81658.0,0.061242]
[1741879743529,0.314384,81659.0,81658.0,0.061242]
[1741879743936,0.314384,81659.0,81658.0,0.063242]
[1741879744148,0.313384,81659.0,81658.0,0.063242]
[1741879744534,0.313384,81659.0,81658.0,0.07534786]
[1741879744933,0.313384,81659.0,81658.0,0.07734786]
[1741879745433,0.313384,81659.0,81658.0,0.07736593]
[1741879746337,0.1919,81659.0,81658.0,0.07736593]
[1741879746638,0.3253337,81659.0,81658.0,0.004]
[1741879747636,0.122508,81642.0,81641.0,8.535e-05]
[1741879748638,0.312708,81642.0,81641.0,8.535e-05]
[1741879749035,0.462708,81642.0,81641.0,8.535e-05]
[1741879749240,0.122517,81636.0,81635.0,0.21932057]
[1741879749433,0.262557,81636.0,81635.0,0.06692057]
[1741879749638,0.260557,81636.0,81635.0,0.06692057]
[1741879749834,0.27105204,81636.0,81635.0,0.06692057]
[1741879750036,0.1225245,81631.0,81630.0,0.29311631]
[1741879750246,0.1225335,81625.0,81620.0,0.1225396]
[1741879750552,0.1225425,81619.0,81618.0,0.43645278]
[1741879751135,0.1215425,81619.0,81618.0,0.43645278]
[1741879751345,0.15,81619.0,81600.0,0.67974384]
[1741879751535,0.270562,81606.0,81605.0,0.45141076]
[1741879751742,0.260602,81606.0,81605.0,0.33701076]
[1741879751939,0.969202,81606.0,81605.0,0.07263056]
[1741879752139,0.84864,81606.0,81600.0,0.54307934]
[1741879752343,0.84864,81606.0,81595.0,0.65477766]
[1741879752344,0.122577,81596.0,81595.0,0.65477766]
[1741879752649,0.1225846,81591.0,81590.0,0.00084]
[1741879752940,0.1225846,81591.0,81581.0,0.63523423]
[1741879752941,0.0592981,81584.0,81581.0,0.69653183]
[1741879753136,0.1225981,81582.0,81581.0,0.69653183]
[1741879753739,0.13359166,81582.0,81581.0,0.69653183]
[1741879753941,0.13159166,81582.0,81581.0,0.69653183]
[1741879754247,0.13159166,81582.0,81581.0,0.63523423]
[1741879754441,0.13159166,81582.0,81581.0,0.63623423]
[1741879755342,0.1205981,81582.0,81581.0,0.63623423]
[1741879757543,0.14008,81583.0,81581.0,0.3195996]
[1741879757848,0.01080622,81587.0,81586.0,0.1225921]
[1741879758046,0.14026381,81591.0,81583.0,0.0612983]
[1741879758248,0.1225884,81589.0,81588.0,0.1225861]
[1741879758443,0.14026381,81591.0,81588.0,0.1225861]
[1741879758640,0.15095107,81591.0,81590.0,0.1225861]
[1741879758844,0.00018381,81591.0,81590.0,0.1225861]
[1741879759140,0.00018381,81591.0,81590.0,0.3302861]
[1741879759340,0.12276841,81591.0,81590.0,0.3302861]
[1741879759853,0.00018381,81591.0,81590.0,0.3302861]
[1741879760744,0.00118381,81591.0,81590.0,0.10953707]
[1741879760943,0.00118381,81591.0,81590.0,0.23212317]
[1741879761138,0.0612744,81615.0,81605.0,0.1225635]
[1741879761342,0.00064,81612.0,81605.0,0.1225635]
[1741879761540,0.14008,81617.0,81605.0,0.1225635]
[1741879761847,0.1225581,81609.0,81605.0,0.1225635]
[1741879762047,0.0612706,81620.0,81605.0,0.1225635]
[1741879762241,0.1225586,81609.0,81605.0,0.1225635]
[1741879762443,0.06145911,81614.0,81605.0,0.1225635]
[1741879762649,0.12440116,81606.0,81605.0,0.1225635]
[1741879763347,0.0612832,81604.0,81601.0,0.201364]
[1741879763549,0.0612832,81604.0,81603.0,0.1225652]
[1741879763777,0.00483916,81606.0,81605.0,0.1225635]
[1741879763947,0.00018381,81614.0,81603.0,0.0612825]
[1741879763948,0.00018381,81614.0,81613.0,0.1225515]
[1741879764446,0.23891874,81627.0,81626.0,0.122532]
[1741879764944,0.10736115,81627.0,81626.0,0.122532]
[1741879765547,0.22989165,81627.0,81626.0,0.122532]
[1741879765743,0.1225305,81627.0,81626.0,0.122532]
[1741879765944,0.0612644,81629.0,81625.0,0.1033]
[1741879766250,0.122532,81626.0,81625.0,0.3483634]
[1741879766449,0.122532,81626.0,81625.0,0.36107137]
[1741879766649,0.122532,81626.0,81625.0,0.3483634]
[1741879766850,0.122532,81626.0,81625.0,0.36285674]
[1741879767249,0.122532,81626.0,81625.0,0.11779334]
[1741879767445,0.122532,81626.0,81625.0,0.13054528]
[1741879767757,0.127532,81626.0,81625.0,0.25407878]
[1741879767951,0.127532,81626.0,81625.0,0.34867878]
[1741879768558,0.127532,81626.0,81625.0,0.36907686]
[1741879768958,0.133532,81626.0,81625.0,0.39199718]
[1741879769258,0.133532,81626.0,81625.0,0.26946368]
[1741879769850,0.133532,81626.0,81625.0,0.2490656]
[1741879770356,0.133532,81626.0,81625.0,0.22614528]
[1741879770551,0.231732,81626.0,81625.0,0.22614528]
[1741879771055,0.231732,81626.0,81625.0,0.24673326]
[1741879771251,0.231732,81626.0,81625.0,0.22614528]
[1741879773152,0.231732,81626.0,81625.0,0.21339334]
[1741879775544,0.133532,81626.0,81625.0,0.34842155]
[1741879775749,0.011,81626.0,81625.0,0.34842155]
[1741879775953,0.133532,81626.0,81625.0,0.3684118]
[1741879776148,0.133532,81626.0,81625.0,0.26876069]
[1741879776361,0.133532,81626.0,81625.0,0.23627573]
[1741879776656,0.133532,81626.0,81625.0,0.21339334]
[1741879777355,0.229132,81626.0,81625.0,0.22588663]
[1741879778354,0.229132,81626.0,81625.0,0.21139329]
[1741879778553,0.229132,81626.0,81625.0,0.1989]
[1741879778750,0.229132,81626.0,81625.0,0.21145133]
[1741879779354,0.229132,81626.0,81625.0,0.1989]
[1741879779746,0.133532,81626.0,81625.0,0.1989]
[1741879779953,0.133532,81626.0,81625.0,0.2114023]
[1741879780152,0.133532,81626.0,81625.0,0.1989]
[1741879780353,0.133532,81626.0,81625.0,0.21143599]
[1741879781049,0.133532,81626.0,81625.0,0.36796866]
[1741879781450,0.133532,81626.0,81625.0,0.24543516]
[1741879781649,0.133532,81626.0,81625.0,0.22537906]
[1741879782253,0.133532,81626.0,81625.0,0.36797205]
[1741879783251,0.133532,81626.0,81625.0,0.34791256]
[1741879784660,0.011,81626.0,81625.0,0.35908536]
[1741879785067,0.133532,81626.0,81625.0,0.35908536]
[1741879785767,0.011,81626.0,81625.0,0.35908536]
[1741879786766,0.17893525,81637.0,81625.0,0.23655186]
[1741879787071,0.14463681,81629.0,81628.0,0.122529]
[1741879787266,0.17893525,81634.0,81628.0,0.37348499]
[1741879787473,0.21803171,81639.0,81633.0,0.0612607]
[1741879787764,0.19024439,81649.0,81633.0,0.0612607]
[1741879787765,0.19024439,81649.0,81648.0,0.122499]
[1741879787970,0.19024439,81649.0,81648.0,0.27495499]
[1741879788371,0.19024439,81649.0,81648.0,0.28889806]
[1741879788567,0.31274189,81649.0,81648.0,0.28889806]
[1741879788961,0.31274189,81649.0,81648.0,0.02647906]
[1741879789169,0.41514189,81649.0,81648.0,0.03047906]
[1741879789471,0.43134189,81649.0,81648.0,0.01794307]
[1741879789867,0.43134189,81649.0,81648.0,0.03012219]
[1741879790071,0.43134189,81649.0,81648.0,0.01894307]
[1741879790764,0.43134189,81649.0,81648.0,0.005]
[1741879790971,0.43134189,81649.0,81648.0,0.001]
[1741879791669,0.43134189,81649.0,81641.0,0.2022]
[1741879791867,0.122508,81642.0,81641.0,0.2022]
[1741879792168,0.122508,81642.0,81641.0,0.2160116]
[1741879792864,0.122508,81642.0,81641.0,0.2022]
[1741879793674,0.122508,81642.0,81641.0,0.21597851]
[1741879794159,0.122508,81642.0,81641.0,0.11797851]
[1741879794360,0.1337713,81642.0,81641.0,0.11797851]
[1741879794561,0.0612614,81633.0,81615.0,0.13988]
[1741879794871,0.1225305,81627.0,81626.0,0.0967]
[1741879795972,0.1235305,81627.0,81626.0,0.0967]
[1741879796576,0.134775,81627.0,81626.0,0.0967]
[1741879798273,0.133775,81627.0,81626.0,0.0967]
[1741879798470,0.134775,81627.0,81626.0,0.0967]
[1741879799373,0.1225425,81619.0,81618.0,0.00018381]
[1741879799675,0.1225665,81603.0,81602.0,0.1008]
[1741879800269,0.099,81604.0,81570.0,0.10380994]
[1741879800481,0.1225921,81586.0,81585.0,0.1008]
[1741879800682,0.1225921,81586.0,81585.0,0.1131522]
[1741879801267,0.1225921,81586.0,81585.0,0.12433288]
[1741879801468,0.1225921,81586.0,81585.0,0.12438937]
[1741879802274,0.1225921,81586.0,81585.0,0.11516449]
[1741879802470,0.1225921,81586.0,81585.0,0.10398381]
[1741879802671,0.1225921,81586.0,81585.0,0.00318381]
[1741879803174,0.1225921,81586.0,81585.0,0.00618381]
[1741879804276,0.0985,81591.0,81585.0,0.00618381]
[1741879804467,0.0985,81591.0,81586.0,0.205]
[1741879804671,0.1225906,81587.0,81586.0,0.3012]
[1741879804979,0.00183908,81604.0,81586.0,0.31316595]
[1741879805181,0.01099832,81602.0,81590.0,0.10380994]
[1741879805481,0.122583,81592.0,81591.0,0.0996]
[1741879807876,0.123583,81592.0,81591.0,0.0996]
[1741879808077,0.001,81592.0,81586.0,0.1054]
[1741879808278,0.1225906,81587.0,81586.0,0.1054]
[1741879808584,0.1225921,81586.0,81585.0,0.00018381]
[1741879808797,0.3294921,81586.0,81585.0,0.00018381]
[1741879808985,0.34059094,81586.0,81585.0,0.00018381]
[1741879811388,0.34059094,81586.0,81585.0,0.00118381]
[1741879812379,0.10846093,81598.0,81585.0,0.00118381]
[1741879812579,0.0612945,81589.0,81585.0,0.00118381]
[1741879812774,0.1225921,81586.0,81585.0,0.00118381]
[1741879815078,0.0613178,81558.0,81555.0,0.07034484]
[1741879815278,0.1226357,81557.0,81556.0,0.0994]
[1741879815478,0.1226357,81557.0,81556.0,0.2009]
[1741879815679,0.2250357,81557.0,81556.0,0.33481358]
[1741879815980,0.2250357,81557.0,81556.0,0.2009]
[1741879816176,0.3276357,81557.0,81556.0,0.0994]
[1741879816383,0.0553361,81534.0,81530.0,0.01231795]
[1741879816682,0.1226748,81532.0,81531.0,0.0963]
[1741879816876,0.1226748,81532.0,81531.0,0.2189748]
[1741879817076,0.1166748,81532.0,81531.0,0.2189748]
[1741879817785,0.0613326,81538.0,81531.0,0.2189748]
[1741879817786,0.0613215,81553.0,81539.0,0.1226627]
[1741879818090,0.1024,81549.0,81532.0,0.0978]
[1741879818289,0.1226718,81533.0,81532.0,0.0978]
[1741879818484,0.00184029,81550.0,81538.0,0.1226642]
[1741879818792,0.00184029,81550.0,81546.0,0.0613258]
[1741879819091,0.12448649,81550.0,81549.0,0.1226477]
[1741879819489,0.1226492,81548.0,81547.0,0.1944]
[1741879819687,0.1226612,81540.0,81539.0,0.004]
[1741879819881,0.1226627,81539.0,81538.0,0.008]
[1741879820386,0.1226627,81539.0,81538.0,0.004]
[1741879820591,0.1216627,81539.0,81538.0,0.1266642]
[1741879821090,0.1216627,81539.0,81538.0,0.004]